[Event "*** Titled Tuesday Blitz"]
[Site "Chess.com"]
[Date "2019.08.06"]
[Round "1"]
[White "Orest_Vovk"]
[Black "RitvarsReimanis"]
[Result "1/2-1/2"]
[WhiteElo "2206"]
[BlackElo "2583"]
[TimeControl "180+2"]
[EndTime "13:12:54 PDT"]
[Termination "Game drawn by 50-move rule"]

1. h4 {[%clk 0:03:00.8]} 1... b6 {[%clk 0:02:57.5]} 2. h5 {[%clk 0:03:00.2]}
2... Bb7 {[%clk 0:02:58.9]} 3. d4 {[%clk 0:02:59.5]} 3... h6 {[%clk 0:02:59.6]}
4. Nc3 {[%clk 0:02:59.1]} 4... Nf6 {[%clk 0:03:00.8]} 5. Rh4 {[%clk 0:02:56.7]}
5... e6 {[%clk 0:02:59.9]} 6. e4 {[%clk 0:02:55.9]} 6... Bb4 {[%clk 0:03:00]} 7.
Bd3 {[%clk 0:02:36.1]} 7... c5 {[%clk 0:02:59.7]} 8. dxc5 {[%clk 0:02:21.3]}
8... bxc5 {[%clk 0:02:49.5]} 9. Bd2 {[%clk 0:02:07.4]} 9... Nc6 {[%clk
0:02:39.2]} 10. a3 {[%clk 0:01:57.5]} 10... Ba5 {[%clk 0:02:39.2]} 11. Nb5
{[%clk 0:01:43.2]} 11... O-O {[%clk 0:02:24.4]} 12. Nd6 {[%clk 0:01:29.3]} 12...
Bxd2+ {[%clk 0:02:23.1]} 13. Qxd2 {[%clk 0:01:27.4]} 13... Qc7 {[%clk
0:02:24.3]} 14. Nxb7 {[%clk 0:01:23.9]} 14... Qxb7 {[%clk 0:02:24.6]} 15. b3
{[%clk 0:01:20.6]} 15... Ne5 {[%clk 0:02:22.8]} 16. Nf3 {[%clk 0:00:58.6]} 16...
Nxd3+ {[%clk 0:02:19.8]} 17. Qxd3 {[%clk 0:00:54.6]} 17... d5 {[%clk 0:02:21.1]}
18. exd5 {[%clk 0:00:50.6]} 18... exd5 {[%clk 0:02:17.4]} 19. Kf1 {[%clk
0:00:48.4]} 19... Rae8 {[%clk 0:02:15.9]} 20. Kg1 {[%clk 0:00:43.9]} 20... Re4
{[%clk 0:02:17]} 21. Rd1 {[%clk 0:00:30.9]} 21... Rfe8 {[%clk 0:02:17.7]} 22.
Rh3 {[%clk 0:00:29.2]} 22... Qc7 {[%clk 0:02:08.1]} 23. c4 {[%clk 0:00:19.3]}
23... dxc4 {[%clk 0:02:03.4]} 24. bxc4 {[%clk 0:00:21.2]} 24... Qc6 {[%clk
0:01:49.1]} 25. Rh4 {[%clk 0:00:16.9]} 25... Rxh4 {[%clk 0:01:40.1]} 26. Nxh4
{[%clk 0:00:18.8]} 26... Nxh5 {[%clk 0:01:41.6]} 27. g3 {[%clk 0:00:16.9]} 27...
Nf6 {[%clk 0:01:38.2]} 28. Nf5 {[%clk 0:00:16.1]} 28... Qe4 {[%clk 0:01:35.8]}
29. Qxe4 {[%clk 0:00:16.3]} 29... Rxe4 {[%clk 0:01:37.7]} 30. Rd8+ {[%clk
0:00:16.5]} 30... Kh7 {[%clk 0:01:39.3]} 31. Nd6 {[%clk 0:00:18]} 31... Re1+
{[%clk 0:01:34.6]} 32. Kg2 {[%clk 0:00:18.5]} 32... Kg6 {[%clk 0:01:36.5]} 33.
Rc8 {[%clk 0:00:14.7]} 33... Ra1 {[%clk 0:01:32]} 34. Rxc5 {[%clk 0:00:14.6]}
34... Rxa3 {[%clk 0:01:32.7]} 35. Rc7 {[%clk 0:00:15.7]} 35... Ra2 {[%clk
0:01:31.3]} 36. Nxf7 {[%clk 0:00:16.5]} 36... Ng4 {[%clk 0:01:32.2]} 37. Nd6
{[%clk 0:00:11.9]} 37... Nxf2 {[%clk 0:01:31.1]} 38. Kf3 {[%clk 0:00:12.4]}
38... Nd3 {[%clk 0:01:31.4]} 39. Ke4 {[%clk 0:00:08.8]} 39... Nb4 {[%clk
0:01:33]} 40. c5 {[%clk 0:00:09.3]} 40... a5 {[%clk 0:01:30]} 41. g4 {[%clk
0:00:09]} 41... Rc2 {[%clk 0:01:13.9]} 42. Nf5 {[%clk 0:00:09.1]} 42... Rc4+
{[%clk 0:01:13]} 43. Kf3 {[%clk 0:00:08.3]} 43... h5 {[%clk 0:01:08]} 44. Rxg7+
{[%clk 0:00:08.3]} 44... Kf6 {[%clk 0:01:09.5]} 45. gxh5 {[%clk 0:00:04.8]}
45... Kxf5 {[%clk 0:01:09.1]} 46. h6 {[%clk 0:00:06.7]} 46... Rc3+ {[%clk
0:00:51.2]} 47. Ke2 {[%clk 0:00:07]} 47... Kf6 {[%clk 0:00:46.8]} 48. Ra7 {[%clk
0:00:06.5]} 48... Rxc5 {[%clk 0:00:35.7]} 49. h7 {[%clk 0:00:07.7]} 49... Rh5
{[%clk 0:00:36.3]} 50. Rxa5 {[%clk 0:00:08.3]} 50... Rxh7 {[%clk 0:00:37.5]} 51.
Rb5 {[%clk 0:00:09.7]} 51... Nc6 {[%clk 0:00:36.1]} 52. Rb6 {[%clk 0:00:10.2]}
52... Rc7 {[%clk 0:00:37.8]} 53. Kf3 {[%clk 0:00:11.6]} 53... Ke5 {[%clk
0:00:39.2]} 54. Rb5+ {[%clk 0:00:12.4]} 54... Kd4 {[%clk 0:00:40.2]} 55. Rb6
{[%clk 0:00:12.7]} 55... Rf7+ {[%clk 0:00:41.4]} 56. Kg3 {[%clk 0:00:13.3]}
56... Ne5 {[%clk 0:00:42.7]} 57. Rb4+ {[%clk 0:00:14.2]} 57... Nc4 {[%clk
0:00:41.6]} 58. Ra4 {[%clk 0:00:14.7]} 58... Kd3 {[%clk 0:00:42.2]} 59. Ra8
{[%clk 0:00:14.5]} 59... Ke4 {[%clk 0:00:40.3]} 60. Ra4 {[%clk 0:00:10.8]} 60...
Rg7+ {[%clk 0:00:41.6]} 61. Kf2 {[%clk 0:00:10.7]} 61... Kd3 {[%clk 0:00:40.1]}
62. Kf3 {[%clk 0:00:09.7]} 62... Rf7+ {[%clk 0:00:41]} 63. Kg4 {[%clk
0:00:10.4]} 63... Nd2 {[%clk 0:00:41.6]} 64. Ra3+ {[%clk 0:00:10.6]} 64... Kd4
{[%clk 0:00:42.9]} 65. Ra4+ {[%clk 0:00:11.8]} 65... Nc4 {[%clk 0:00:44.4]} 66.
Kg5 {[%clk 0:00:12.9]} 66... Rf1 {[%clk 0:00:43]} 67. Kg4 {[%clk 0:00:13.7]}
67... Kd5 {[%clk 0:00:42.4]} 68. Kg5 {[%clk 0:00:14]} 68... Rg1+ {[%clk
0:00:34.2]} 69. Kf4 {[%clk 0:00:14.7]} 69... Rf1+ {[%clk 0:00:33.7]} 70. Kg5
{[%clk 0:00:15.9]} 70... Nb6 {[%clk 0:00:30.3]} 71. Ra5+ {[%clk 0:00:16.1]}
71... Ke4 {[%clk 0:00:31.7]} 72. Ra6 {[%clk 0:00:16.6]} 72... Nd5 {[%clk
0:00:31.1]} 73. Ra4+ {[%clk 0:00:16.9]} 73... Ke5 {[%clk 0:00:32.4]} 74. Kg4
{[%clk 0:00:15.5]} 74... Ne3+ {[%clk 0:00:31.4]} 75. Kg3 {[%clk 0:00:14.1]}
75... Nc2 {[%clk 0:00:32.9]} 76. Ra5+ {[%clk 0:00:14.5]} 76... Ke4 {[%clk
0:00:34.2]} 77. Ra4+ {[%clk 0:00:15.4]} 77... Nd4 {[%clk 0:00:35.6]} 78. Kg2
{[%clk 0:00:14.9]} 78... Rf5 {[%clk 0:00:37.2]} 79. Kg3 {[%clk 0:00:15.4]} 79...
Rg5+ {[%clk 0:00:37.7]} 80. Kf2 {[%clk 0:00:16.1]} 80... Rg6 {[%clk 0:00:39]}
81. Ra8 {[%clk 0:00:14.4]} 81... Nf5 {[%clk 0:00:38.4]} 82. Ra4+ {[%clk
0:00:14.3]} 82... Nd4 {[%clk 0:00:39.7]} 83. Ra8 {[%clk 0:00:15.1]} 83... Rf6+
{[%clk 0:00:41.4]} 84. Kg3 {[%clk 0:00:15.5]} 84... Nf5+ {[%clk 0:00:41.5]} 85.
Kf2 {[%clk 0:00:14.1]} 85... Nd6+ {[%clk 0:00:31.3]} 86. Kg3 {[%clk 0:00:14.6]}
86... Nc4 {[%clk 0:00:32.8]} 87. Ra4 {[%clk 0:00:12.8]} 87... Kd3 {[%clk
0:00:34.1]} 88. Kg4 {[%clk 0:00:12.1]} 88... Ne5+ {[%clk 0:00:33.2]} 89. Kg5
{[%clk 0:00:11.4]} 89... Rf8 {[%clk 0:00:34.1]} 90. Ra3+ {[%clk 0:00:10.8]}
90... Kd4 {[%clk 0:00:34.9]} 91. Ra4+ {[%clk 0:00:12.2]} 91... Nc4 {[%clk
0:00:36.2]} 92. Ra7 {[%clk 0:00:11.9]} 92... Nd6 {[%clk 0:00:34.4]} 93. Ra4+
{[%clk 0:00:12.1]} 93... Ke5 {[%clk 0:00:35.8]} 94. Ra5+ {[%clk 0:00:13.3]}
94... Ke6 {[%clk 0:00:37.3]} 95. Ra6 {[%clk 0:00:14.4]} 95... Rf2 {[%clk
0:00:33.2]} 96. Kg4 {[%clk 0:00:14.3]} 96... Kd5 {[%clk 0:00:34]} 97. Ra5+
{[%clk 0:00:14.7]} 97... Kd4 {[%clk 0:00:35.3]} 98. Ra4+ {[%clk 0:00:15.6]}
98... Nc4 {[%clk 0:00:36.9]} 99. Kg3 {[%clk 0:00:16.3]} 99... Rf7 {[%clk
0:00:37.4]} 100. Kg4 {[%clk 0:00:17.4]} 100... Kd5 {[%clk 0:00:37.2]} 1/2-1/2

[Event "*** Titled Tuesday Blitz"]
[Site "Chess.com"]
[Date "2019.08.06"]
[Round "1"]
[White "penguingm1"]
[Black "Evgeny81"]
[Result "0-1"]
[WhiteElo "3028"]
[BlackElo "2604"]
[TimeControl "180+2"]
[EndTime "13:13:09 PDT"]
[Termination "Evgeny81 won by resignation"]

1. d4 {[%clk 0:02:59.2]} 1... d5 {[%clk 0:03:00.6]} 2. Bf4 {[%clk 0:02:56.9]}
2... Nf6 {[%clk 0:02:59.8]} 3. e3 {[%clk 0:02:57.4]} 3... g6 {[%clk 0:02:55.8]}
4. Nc3 {[%clk 0:02:52.7]} 4... Bg7 {[%clk 0:02:56.9]} 5. h4 {[%clk 0:02:54.3]}
5... O-O {[%clk 0:02:53.5]} 6. h5 {[%clk 0:02:54.2]} 6... Nxh5 {[%clk
0:02:52.3]} 7. Rxh5 {[%clk 0:02:55.2]} 7... gxh5 {[%clk 0:02:53.1]} 8. Qxh5
{[%clk 0:02:57.1]} 8... e6 {[%clk 0:02:49]} 9. Nf3 {[%clk 0:02:40.1]} 9... Nd7
{[%clk 0:02:23.5]} 10. Bd3 {[%clk 0:02:35.2]} 10... f5 {[%clk 0:02:17.1]} 11.
O-O-O {[%clk 0:01:51]} 11... Nf6 {[%clk 0:02:17.3]} 12. Qh2 {[%clk 0:01:51.2]}
12... Ng4 {[%clk 0:01:51.3]} 13. Qg3 {[%clk 0:01:47.9]} 13... c5 {[%clk
0:01:51.5]} 14. Rh1 {[%clk 0:01:26.1]} 14... cxd4 {[%clk 0:01:31.7]} 15. exd4
{[%clk 0:01:25.2]} 15... Bd7 {[%clk 0:01:23.7]} 16. Ne5 {[%clk 0:01:13.6]} 16...
Nxe5 {[%clk 0:01:03.5]} 17. Bxe5 {[%clk 0:01:09.1]} 17... Rf7 {[%clk 0:01:04.3]}
18. Ne2 {[%clk 0:01:02.4]} 18... Kh8 {[%clk 0:00:39.7]} 19. Nf4 {[%clk
0:00:56.5]} 19... Bxe5 {[%clk 0:00:40.1]} 20. Ng6+ {[%clk 0:00:46.4]} 20... Kg8
{[%clk 0:00:40.3]} 21. Qxe5 {[%clk 0:00:27.5]} 21... Qf6 {[%clk 0:00:32.9]} 22.
Qxf6 {[%clk 0:00:25.8]} 22... Rxf6 {[%clk 0:00:34.2]} 23. Ne5 {[%clk 0:00:27.7]}
23... Be8 {[%clk 0:00:29.4]} 24. Kd2 {[%clk 0:00:25.2]} 24... Rc8 {[%clk
0:00:29.1]} 25. g3 {[%clk 0:00:26.2]} 25... Rc7 {[%clk 0:00:29.9]} 26. Ke3
{[%clk 0:00:26.4]} 26... a6 {[%clk 0:00:25.3]} 27. Kf4 {[%clk 0:00:27.4]} 27...
Bb5 {[%clk 0:00:25.4]} 28. c3 {[%clk 0:00:18.3]} 28... Bxd3 {[%clk 0:00:25.3]}
29. Nxd3 {[%clk 0:00:20.2]} 29... Rg6 {[%clk 0:00:22.7]} 30. Ke5 {[%clk
0:00:19.3]} 30... Rc6 {[%clk 0:00:19.2]} 31. Nf4 {[%clk 0:00:20.3]} 31... Rg4
{[%clk 0:00:19]} 32. Rh3 {[%clk 0:00:16.3]} 32... Rb6 {[%clk 0:00:17.9]} 33. f3
{[%clk 0:00:16.2]} 33... Rg7 {[%clk 0:00:18.2]} 34. Nh5 {[%clk 0:00:17.4]} 34...
Rc7 {[%clk 0:00:13.9]} 35. Rh2 {[%clk 0:00:18.8]} 35... Kf7 {[%clk 0:00:13.6]}
36. Nf4 {[%clk 0:00:19.7]} 36... Kg8 {[%clk 0:00:12.9]} 37. Kf6 {[%clk
0:00:18.4]} 37... Rf7+ {[%clk 0:00:11.9]} 38. Ke5 {[%clk 0:00:19.8]} 38... Rc7
{[%clk 0:00:10.9]} 39. a4 {[%clk 0:00:19.6]} 39... a5 {[%clk 0:00:11.8]} 40. Nh5
{[%clk 0:00:14.9]} 40... Rf7 {[%clk 0:00:08.4]} 41. Nf6+ {[%clk 0:00:14]} 41...
Kh8 {[%clk 0:00:07.9]} 42. Ne8 {[%clk 0:00:15.4]} 42... Re7 {[%clk 0:00:07.2]}
43. Nd6 {[%clk 0:00:15.4]} 43... Rg7 {[%clk 0:00:07.8]} 44. Rg2 {[%clk
0:00:14.7]} 44... f4 {[%clk 0:00:09]} 45. g4 {[%clk 0:00:14.9]} 45... Rg5+
{[%clk 0:00:09.9]} 46. Kxf4 {[%clk 0:00:14]} 46... Rg8 {[%clk 0:00:07.2]} 47.
Ke5 {[%clk 0:00:09.8]} 47... Rg5+ {[%clk 0:00:07.7]} 48. Kf4 {[%clk 0:00:11.3]}
48... Rg7 {[%clk 0:00:08.2]} 49. Nb5 {[%clk 0:00:12.5]} 49... Rf7+ {[%clk
0:00:08.7]} 50. Kg3 {[%clk 0:00:12.7]} 50... Rc6 {[%clk 0:00:08.7]} 51. Re2
{[%clk 0:00:14.2]} 51... Kg7 {[%clk 0:00:08.9]} 52. Na7 {[%clk 0:00:11.6]} 52...
Rb6 {[%clk 0:00:08.5]} 53. Nb5 {[%clk 0:00:12.5]} 53... Rc6 {[%clk 0:00:09.6]}
54. Na3 {[%clk 0:00:13.7]} 54... Kf6 {[%clk 0:00:09.2]} 55. Re3 {[%clk
0:00:14.2]} 55... Rb6 {[%clk 0:00:09.8]} 56. Re2 {[%clk 0:00:14.2]} 56... Rc6
{[%clk 0:00:10.3]} 57. Nc2 {[%clk 0:00:15.5]} 57... Rg7 {[%clk 0:00:11.1]} 58.
Kh4 {[%clk 0:00:12.3]} 58... Rb6 {[%clk 0:00:11.2]} 59. Ne1 {[%clk 0:00:13.5]}
59... Rc6 {[%clk 0:00:11.3]} 60. Nd3 {[%clk 0:00:14.8]} 60... Rc4 {[%clk
0:00:10.6]} 61. Nc5 {[%clk 0:00:11.2]} 61... Re7 {[%clk 0:00:11.6]} 62. g5+
{[%clk 0:00:09.5]} 62... Kf7 {[%clk 0:00:10.5]} 63. Re3 {[%clk 0:00:10.6]} 63...
b6 {[%clk 0:00:11.1]} 64. Nd3 {[%clk 0:00:07.3]} 64... Rxa4 {[%clk 0:00:11.3]}
65. Ne5+ {[%clk 0:00:08.8]} 65... Kg7 {[%clk 0:00:12.3]} 66. Nc6 {[%clk
0:00:09]} 66... Re8 {[%clk 0:00:12.9]} 67. Kg4 {[%clk 0:00:10.4]} 67... Ra1
{[%clk 0:00:13.3]} 68. Ne5 {[%clk 0:00:06.2]} 68... Rg1+ {[%clk 0:00:11.6]} 69.
Kh4 {[%clk 0:00:07.3]} 69... h6 {[%clk 0:00:10]} 70. Ng4 {[%clk 0:00:07.2]}
70... Rh1+ {[%clk 0:00:09.1]} 71. Kg3 {[%clk 0:00:07.4]} 71... hxg5 {[%clk
0:00:10.4]} 72. Re5 {[%clk 0:00:08.5]} 72... Kg6 {[%clk 0:00:11.2]} 73. Re2
{[%clk 0:00:10.1]} 73... Rh7 {[%clk 0:00:11]} 74. Ne5+ {[%clk 0:00:11.4]} 74...
Kf6 {[%clk 0:00:11.5]} 75. Ng4+ {[%clk 0:00:12.3]} 75... Ke7 {[%clk 0:00:12.5]}
76. Re1 {[%clk 0:00:11.7]} 76... Rf8 {[%clk 0:00:11.3]} 77. Ne3 {[%clk
0:00:12.4]} 77... Kd6 {[%clk 0:00:11.9]} 78. Ng4 {[%clk 0:00:13.6]} 78... Rfh8
{[%clk 0:00:09.1]} 79. Nf2 {[%clk 0:00:13.3]} 79... a4 {[%clk 0:00:07.5]} 80.
Re5 {[%clk 0:00:13.5]} 80... Rg7 {[%clk 0:00:06.8]} 81. Re1 {[%clk 0:00:14.5]}
81... Rc8 {[%clk 0:00:06]} 82. Nd3 {[%clk 0:00:14.9]} 82... a3 {[%clk 0:00:07]}
83. Rc1 {[%clk 0:00:14.6]} 83... axb2 {[%clk 0:00:07.2]} 84. Nxb2 {[%clk
0:00:16.5]} 84... Ra7 {[%clk 0:00:08.2]} 85. Nd1 {[%clk 0:00:17.1]} 85... Ra2
{[%clk 0:00:08.4]} 86. Rb1 {[%clk 0:00:18.3]} 86... Rc6 {[%clk 0:00:08.7]} 87.
Nf2 {[%clk 0:00:12.5]} 87... Rc2 {[%clk 0:00:06.6]} 88. Nd1 {[%clk 0:00:13.3]}
88... Kc7 {[%clk 0:00:06.7]} 89. Kg4 {[%clk 0:00:14.3]} 89... Rg2+ {[%clk
0:00:06.5]} 90. Kh3 {[%clk 0:00:15.2]} 90... Rg1 {[%clk 0:00:07.9]} 91. Ra1
{[%clk 0:00:13.7]} 91... Kb7 {[%clk 0:00:07.7]} 92. Rc1 {[%clk 0:00:14.3]} 92...
Rc8 {[%clk 0:00:08.5]} 93. Kh2 {[%clk 0:00:15.3]} 93... Re1 {[%clk 0:00:09.3]}
94. Kg3 {[%clk 0:00:16.4]} 94... Rh8 {[%clk 0:00:09.8]} 95. Kg4 {[%clk
0:00:10.1]} 95... Rhh1 {[%clk 0:00:10.6]} 96. Kxg5 {[%clk 0:00:11.5]} 96... Rxd1
{[%clk 0:00:11.9]} 97. Rc2 {[%clk 0:00:13]} 97... Rhg1+ {[%clk 0:00:12.5]} 98.
Kf6 {[%clk 0:00:13.6]} 98... Rge1 {[%clk 0:00:13.3]} 99. Ke7 {[%clk 0:00:13.4]}
99... Rc1 {[%clk 0:00:14.1]} 100. Rf2 {[%clk 0:00:13.6]} 100... Rxc3 {[%clk
0:00:14.7]} 101. f4 {[%clk 0:00:15.5]} 101... Rc7+ {[%clk 0:00:15.3]} 102. Kd6
{[%clk 0:00:16.6]} 102... Rc6+ {[%clk 0:00:16.3]} 103. Kd7 {[%clk 0:00:18.1]}
103... Rh1 {[%clk 0:00:16]} 104. Rh2 {[%clk 0:00:17.5]} 104... Rxh2 {[%clk
0:00:17]} 0-1

[Event "*** Titled Tuesday Blitz"]
[Site "Chess.com"]
[Date "2019.08.06"]
[Round "1"]
[White "swayamsm"]
[Black "Micki-taryan"]
[Result "0-1"]
[WhiteElo "2494"]
[BlackElo "2954"]
[TimeControl "180+2"]
[EndTime "13:14:00 PDT"]
[Termination "Micki-taryan won by resignation"]

1. d4 {[%clk 0:03:01.9]} 1... Nf6 {[%clk 0:02:53.2]} 2. Nf3 {[%clk 0:03:02.4]}
2... e6 {[%clk 0:02:52.2]} 3. Bf4 {[%clk 0:03:02.4]} 3... b6 {[%clk 0:02:52.7]}
4. e3 {[%clk 0:03:02.8]} 4... Bb7 {[%clk 0:02:54.4]} 5. Nbd2 {[%clk 0:03:02.8]}
5... Bd6 {[%clk 0:02:55.5]} 6. Bg3 {[%clk 0:03:01.1]} 6... O-O {[%clk
0:02:53.2]} 7. Bd3 {[%clk 0:03:01.7]} 7... Nc6 {[%clk 0:02:53.3]} 8. c3 {[%clk
0:03:02.2]} 8... Ne7 {[%clk 0:02:52.6]} 9. e4 {[%clk 0:03:02.8]} 9... Bxg3
{[%clk 0:02:51.7]} 10. hxg3 {[%clk 0:03:03.5]} 10... d6 {[%clk 0:02:40.9]} 11.
Qc2 {[%clk 0:02:45.1]} 11... Ng6 {[%clk 0:02:37]} 12. O-O-O {[%clk 0:02:41.5]}
12... e5 {[%clk 0:02:36.4]} 13. Nh4 {[%clk 0:02:33]} 13... Nxh4 {[%clk
0:02:30.7]} 14. Rxh4 {[%clk 0:02:34.9]} 14... Qe7 {[%clk 0:02:15.9]} 15. Rdh1
{[%clk 0:02:30.6]} 15... Bc8 {[%clk 0:02:16.7]} 16. f3 {[%clk 0:02:30.4]} 16...
h6 {[%clk 0:02:17.3]} 17. g4 {[%clk 0:02:31]} 17... Nh7 {[%clk 0:02:18.9]} 18.
Nf1 {[%clk 0:02:24.3]} 18... Be6 {[%clk 0:02:13.8]} 19. Kb1 {[%clk 0:02:19.4]}
19... a6 {[%clk 0:02:07.7]} 20. Ne3 {[%clk 0:02:19.9]} 20... b5 {[%clk
0:02:08.7]} 21. g3 {[%clk 0:02:10.7]} 21... c5 {[%clk 0:01:58.3]} 22. d5 {[%clk
0:02:08.2]} 22... Bd7 {[%clk 0:01:59]} 23. f4 {[%clk 0:02:08.4]} 23... f6 {[%clk
0:01:58]} 24. Be2 {[%clk 0:01:59.3]} 24... a5 {[%clk 0:01:54.2]} 25. Nf5 {[%clk
0:01:39.6]} 25... Bxf5 {[%clk 0:01:54.8]} 26. gxf5 {[%clk 0:01:38.8]} 26... c4
{[%clk 0:01:45.7]} 27. Bh5 {[%clk 0:01:25.7]} 27... Rfb8 {[%clk 0:01:43.7]} 28.
Bg6 {[%clk 0:01:27]} 28... b4 {[%clk 0:01:43]} 29. Bxh7+ {[%clk 0:01:11.9]}
29... Kxh7 {[%clk 0:01:44.9]} 30. Qh2 {[%clk 0:01:08.2]} 30... Kg8 {[%clk
0:01:36]} 31. Rg4 {[%clk 0:01:03.2]} 31... Kf8 {[%clk 0:01:33.7]} 32. Kc2 {[%clk
0:00:52.4]} 32... exf4 {[%clk 0:01:32.3]} 33. Rxf4 {[%clk 0:00:52.2]} 33... Rb7
{[%clk 0:01:29.8]} 34. Qe2 {[%clk 0:00:46.7]} 34... bxc3 {[%clk 0:01:21.2]} 35.
bxc3 {[%clk 0:00:45.5]} 35... Qd7 {[%clk 0:01:19.5]} 36. Qxc4 {[%clk 0:00:29.7]}
36... Rc8 {[%clk 0:01:18.9]} 37. Qd4 {[%clk 0:00:22.6]} 37... Rcb8 {[%clk
0:01:19.1]} 38. Kd3 {[%clk 0:00:21.5]} 38... Rb2 {[%clk 0:01:19]} 39. Rf2 {[%clk
0:00:21.9]} 39... Rxf2 {[%clk 0:00:59.8]} 40. Qxf2 {[%clk 0:00:23.8]} 40... Qb5+
{[%clk 0:01:01.3]} 41. Ke3 {[%clk 0:00:24]} 41... Qc5+ {[%clk 0:00:55.2]} 42.
Kf3 {[%clk 0:00:24.2]} 42... Qxc3+ {[%clk 0:00:53.6]} 43. Kg4 {[%clk 0:00:25.4]}
43... Kg8 {[%clk 0:00:41.1]} 44. Re1 {[%clk 0:00:17.5]} 44... Rb2 {[%clk
0:00:40.2]} 45. Re2 {[%clk 0:00:17.3]} 45... Rb1 {[%clk 0:00:36.9]} 46. Rc2
{[%clk 0:00:14.9]} 46... Qd3 {[%clk 0:00:37.9]} 47. Rc8+ {[%clk 0:00:15.6]}
47... Kh7 {[%clk 0:00:39.4]} 48. Qf3 {[%clk 0:00:16.7]} 48... Qd2 {[%clk
0:00:38]} 49. Kh3 {[%clk 0:00:11.1]} 49... Re1 {[%clk 0:00:25.3]} 50. Rc7 {[%clk
0:00:11.8]} 50... Qg5 {[%clk 0:00:24]} 51. Rd7 {[%clk 0:00:10.6]} 51... Re3
{[%clk 0:00:23.5]} 52. Qg4 {[%clk 0:00:08]} 52... Qxg4+ {[%clk 0:00:18.9]} 53.
Kxg4 {[%clk 0:00:09.9]} 53... Rxe4+ {[%clk 0:00:20.8]} 54. Kh5 {[%clk
0:00:05.3]} 54... Ra4 {[%clk 0:00:18.2]} 55. Rxd6 {[%clk 0:00:05.1]} 55... Rxa2
{[%clk 0:00:20.1]} 56. Rd7 {[%clk 0:00:05.8]} 56... Rd2 {[%clk 0:00:20.9]} 57.
d6 {[%clk 0:00:06.1]} 57... Rd5 {[%clk 0:00:22.5]} 58. g4 {[%clk 0:00:06.1]}
58... a4 {[%clk 0:00:22.4]} 59. Kh4 {[%clk 0:00:07.4]} 59... a3 {[%clk
0:00:22.5]} 60. Ra7 {[%clk 0:00:08.8]} 60... Rd4 {[%clk 0:00:23.4]} 61. Rxa3
{[%clk 0:00:09.4]} 61... Rxd6 {[%clk 0:00:25]} 62. Ra8 {[%clk 0:00:10.3]} 62...
Rd1 {[%clk 0:00:26]} 63. Ra7 {[%clk 0:00:11.4]} 63... Rh1+ {[%clk 0:00:26.7]}
64. Kg3 {[%clk 0:00:12.8]} 64... h5 {[%clk 0:00:28.4]} 65. gxh5 {[%clk
0:00:13.9]} 65... Rxh5 {[%clk 0:00:30]} 66. Kg4 {[%clk 0:00:15]} 66... Rh1
{[%clk 0:00:30.6]} 67. Ra8 {[%clk 0:00:13.9]} 67... Rg1+ {[%clk 0:00:30.9]} 68.
Kf4 {[%clk 0:00:14.4]} 68... Rc1 {[%clk 0:00:32.5]} 69. Kg4 {[%clk 0:00:14.6]}
69... Rc4+ {[%clk 0:00:33.9]} 70. Kh5 {[%clk 0:00:15.6]} 70... Rf4 {[%clk
0:00:34.2]} 71. Ra5 {[%clk 0:00:17.1]} 71... Rf1 {[%clk 0:00:35.8]} 72. Rb5
{[%clk 0:00:17.6]} 72... Rh1+ {[%clk 0:00:36.3]} 73. Kg4 {[%clk 0:00:18.9]}
73... Kh6 {[%clk 0:00:38.2]} 74. Rb8 {[%clk 0:00:19.8]} 74... Rg1+ {[%clk
0:00:39.4]} 75. Kh4 {[%clk 0:00:20.5]} 75... Kh7 {[%clk 0:00:37.2]} 76. Ra8
{[%clk 0:00:17.4]} 76... Rg5 {[%clk 0:00:38]} 77. Ra5 {[%clk 0:00:18.9]} 77...
Kh6 {[%clk 0:00:39]} 78. Rb5 {[%clk 0:00:18.3]} 78... g6 {[%clk 0:00:40.1]} 79.
Ra5 {[%clk 0:00:08]} 79... Rxf5 {[%clk 0:00:40.9]} 80. Ra6 {[%clk 0:00:06.7]}
80... Rf4+ {[%clk 0:00:40.3]} 81. Kg3 {[%clk 0:00:08.1]} 81... Kg5 {[%clk
0:00:42.2]} 82. Ra5+ {[%clk 0:00:09]} 82... f5 {[%clk 0:00:43.6]} 83. Ra3 {[%clk
0:00:10.7]} 83... Rh4 {[%clk 0:00:44.1]} 84. Ra6 {[%clk 0:00:11.6]} 84... f4+
{[%clk 0:00:44]} 85. Kf3 {[%clk 0:00:13]} 85... Rh3+ {[%clk 0:00:45.1]} 86. Kf2
{[%clk 0:00:14.1]} 86... Re3 {[%clk 0:00:46]} 87. Rb6 {[%clk 0:00:13.9]} 87...
Kf5 {[%clk 0:00:46.9]} 88. Rb5+ {[%clk 0:00:15.5]} 88... Re5 {[%clk 0:00:47.5]}
89. Rb1 {[%clk 0:00:17.3]} 89... g5 {[%clk 0:00:48.9]} 90. Rb8 {[%clk
0:00:16.3]} 90... g4 {[%clk 0:00:49.8]} 91. Rf8+ {[%clk 0:00:17.8]} 91... Ke4
{[%clk 0:00:50.7]} 92. Rg8 {[%clk 0:00:19.7]} 92... g3+ {[%clk 0:00:52.4]} 93.
Kg2 {[%clk 0:00:19.3]} 93... Ke3 {[%clk 0:00:52.5]} 94. Rf8 {[%clk 0:00:19.4]}
94... Re4 {[%clk 0:00:53.9]} 95. Rf7 {[%clk 0:00:20.6]} 95... Ra4 {[%clk
0:00:54.2]} 96. Re7+ {[%clk 0:00:21.7]} 96... Re4 {[%clk 0:00:55.4]} 97. Rf7
{[%clk 0:00:23]} 97... Ke2 {[%clk 0:00:56.8]} 98. Rf8 {[%clk 0:00:24]} 98... Ke1
{[%clk 0:00:56.5]} 99. Kg1 {[%clk 0:00:21.5]} 99... Kd2 {[%clk 0:00:52.9]} 100.
Rf7 {[%clk 0:00:17.4]} 100... Re1+ {[%clk 0:00:53.5]} 101. Kg2 {[%clk
0:00:18.7]} 101... Re2+ {[%clk 0:00:55.2]} 102. Kg1 {[%clk 0:00:17.6]} 102...
Ke3 {[%clk 0:00:55.9]} 103. Ra7 {[%clk 0:00:17.6]} 103... Kf3 {[%clk 0:00:56.8]}
104. Ra3+ {[%clk 0:00:19.1]} 104... Re3 {[%clk 0:00:58]} 105. Ra1 {[%clk
0:00:19.5]} 105... g2 {[%clk 0:00:58.9]} 106. Rd1 {[%clk 0:00:17.5]} 106... Ke2
{[%clk 0:00:38.4]} 107. Ra1 {[%clk 0:00:15.9]} 107... f3 {[%clk 0:00:38.5]} 108.
Ra2+ {[%clk 0:00:17.4]} 108... Kd3 {[%clk 0:00:40]} 109. Ra3+ {[%clk 0:00:18.1]}
109... Ke4 {[%clk 0:00:41.4]} 110. Ra4+ {[%clk 0:00:19.5]} 110... Kf5 {[%clk
0:00:42.7]} 111. Ra5+ {[%clk 0:00:20.3]} 111... Re5 {[%clk 0:00:43.6]} 112. Ra1
{[%clk 0:00:20.9]} 112... Re4 {[%clk 0:00:44.4]} 113. Kf2 {[%clk 0:00:21.3]}
113... Kf4 {[%clk 0:00:42.9]} 114. Rb1 {[%clk 0:00:05.9]} 114... Re2+ {[%clk
0:00:42.9]} 115. Kg1 {[%clk 0:00:07.4]} 115... Kg3 {[%clk 0:00:43.5]} 0-1

[Event "*** Titled Tuesday Blitz"]
[Site "Chess.com"]
[Date "2019.08.06"]
[Round "2"]
[White "FearNoEvil12"]
[Black "Samantha_Ross"]
[Result "1-0"]
[WhiteElo "1993"]
[BlackElo "2066"]
[TimeControl "180+2"]
[EndTime "13:16:17 PDT"]
[Termination "FearNoEvil12 won by checkmate"]

1. e4 {[%clk 0:03:01.9]} 1... c5 {[%clk 0:03:01]} 2. Nc3 {[%clk 0:03:01.6]} 2...
d6 {[%clk 0:03:00.2]} 3. f4 {[%clk 0:03:02.8]} 3... Nc6 {[%clk 0:03:00.7]} 4.
Bc4 {[%clk 0:03:03.6]} 4... Nf6 {[%clk 0:03:00.3]} 5. Nf3 {[%clk 0:03:05.1]}
5... g6 {[%clk 0:02:58.5]} 6. f5 {[%clk 0:03:04.7]} 6... Bg7 {[%clk 0:02:59.4]}
7. d3 {[%clk 0:03:06]} 7... gxf5 {[%clk 0:02:58.9]} 8. O-O {[%clk 0:03:04.9]}
8... fxe4 {[%clk 0:02:58.3]} 9. dxe4 {[%clk 0:03:05.1]} 9... Bg4 {[%clk
0:02:58.3]} 10. Qe1 {[%clk 0:03:04.7]} 10... Bxf3 {[%clk 0:02:53.8]} 11. Rxf3
{[%clk 0:03:02.1]} 11... a6 {[%clk 0:02:50.9]} 12. Rg3 {[%clk 0:02:55.5]} 12...
Bf8 {[%clk 0:02:50.6]} 13. Bf4 {[%clk 0:02:50.1]} 13... b5 {[%clk 0:02:49.8]}
14. Be2 {[%clk 0:02:50.1]} 14... Nd4 {[%clk 0:02:48.8]} 15. Qd2 {[%clk
0:02:38.1]} 15... b4 {[%clk 0:02:49.5]} 16. Nd5 {[%clk 0:02:37.8]} 16... Nxe4
{[%clk 0:02:49.4]} 17. Qe3 {[%clk 0:02:35.7]} 17... Nxg3 {[%clk 0:02:45.9]} 18.
Nf6# {[%clk 0:02:35.2]} 1-0